bitfinex-derivatives/quotes_ETHF0:USTF0_20250606
["timestamp","ask_amount","ask_price","bid_price","bid_amount"]
[1749238326846,0.80315,2488.4,2488.2,0.80319]
[1749238327047,0.80315,2488.4,2488.1,0.8032]
[1749238327248,0.80315,2488.4,2488.2,0.80319]
[1749238327451,0.00602228,2488.5,2488.4,0.80313]
[1749238328043,0.00602228,2488.5,2488.4,5.80313]
[1749238328244,0.00602228,2488.5,2488.4,12.86373]
[1749238330740,0.00602228,2488.5,2488.4,7.81673]
[1749238330945,0.00602228,2488.5,2488.4,2.81673]
[1749238331137,0.00602228,2488.5,2488.4,7.86373]
[1749238334247,5.85085,2489.3,2488.8,2.0075]
[1749238334446,7.0484,2489.5,2488.9,0.6458]
[1749238334655,0.80283,2489.4,2489.2,0.80285]
[1749238334954,7.0484,2489.5,2489.3,0.80283]
[1749238335257,0.80281,2489.4,2489.3,0.80283]
[1749238336456,0.80284,2489.3,2489.2,0.80888228]
[1749238336754,2.14993,2489.4,2489.2,0.80888228]
[1749238337549,2.14993,2489.4,2489.3,0.80284]
[1749238337745,2.14992,2489.4,2489.2,0.00602228]
[1749238338257,0.80284,2489.3,2489.2,0.80886228]
[1749238338459,2.14992,2489.4,2489.3,0.80284]
[1749238341965,2.14991,2489.4,2489.3,0.80284]
[1749238343049,0.80284,2489.3,2489.2,0.07735579]
[1749238343252,2.18244,2489.3,2489.2,0.07735579]
[1749238345461,6.48501812,2489.3,2489.2,0.07735579]
[1749238346158,6.48501812,2489.3,2489.2,0.88022579]
[1749238346362,10.50824,2489.3,2489.2,0.07735579]
[1749238347263,11.60329996,2489.3,2489.2,0.07735579]
[1749238348766,0.803,2488.8,2488.7,0.80302]
[1749238348960,0.803,2488.9,2488.8,0.80297]
[1749238349159,2.1345,2488.9,2488.8,0.80297]
[1749238350259,0.80302,2488.8,2488.7,0.80301]
[1749238350563,2.13672,2488.8,2488.7,0.80301]
[1749238351061,0.80304,2488.7,2488.6,0.80304]
[1749238351263,0.80306,2488.7,2488.6,0.80306]
[1749238351458,2.13671,2488.8,2488.7,0.80303]
[1749238351957,0.80303,2488.7,2488.6,0.80306]
[1749238352264,2.13673,2488.7,2488.6,0.80306]
[1749238352465,1.3337,2488.7,2488.6,0.80306]
[1749238352871,3.2078,2489.3,2489.1,0.80289]
[1749238353074,1.09479825,2489.2,2489.1,0.8029]
[1749238353458,1.09479825,2489.2,2488.7,3.8476]
[1749238353459,0.80291,2489.1,2488.7,2.6473]
[1749238353661,0.80291,2489.1,2489.0,0.80293]
[1749238354065,2.17118,2489.2,2488.8,2.00746]
[1749238354264,0.80291,2489.1,2489.0,0.80291]
[1749238354461,2.17119,2489.2,2489.1,0.8029]
[1749238354669,0.803,2488.8,2488.7,0.6398]
[1749238354872,0.803,2488.8,2488.7,1.44283]
[1749238355061,0.803,2488.8,2488.7,0.6398]
[1749238355261,0.80306,2488.6,2488.5,1.49639]
[1749238355472,0.8031,2488.5,2488.4,3.2078]
[1749238355660,0.80313,2488.4,2488.3,0.6414]
[1749238355864,4.01093,2488.4,2488.3,0.6414]
[1749238356064,0.80318,2488.3,2488.1,0.8032]
[1749238356267,2.19718,2488.3,2488.1,0.8032]
[1749238356573,2.19718,2488.3,2488.0,0.6414]
[1749238356574,2.19718,2488.3,2488.2,0.80319]
[1749238358471,1.394,2488.3,2488.1,0.80321]
[1749238358969,2.19717,2488.3,2488.2,0.80319]
[1749238359163,1.394,2488.3,2488.2,0.80319]
[1749238359362,1.394,2488.3,2488.0,0.6414]
[1749238359363,0.80322,2488.1,2488.0,0.6414]
[1749238359568,0.80322,2488.1,2488.0,1.44466]
[1749238359766,0.8032,2488.2,2488.0,0.6414]
[1749238359970,3.21382228,2488.4,2488.0,2.64955]
[1749238360171,0.00602228,2488.4,2488.3,0.80316]
[1749238360370,0.80915228,2488.4,2488.3,0.80316]
[1749238360672,0.00602228,2488.4,2488.3,0.80316]
[1749238361067,1.2882,2489.0,2488.9,0.80297]
[1749238361263,1.0961662,2489.0,2488.9,0.80297]
[1749238362170,1.8990962,2489.0,2488.9,0.80297]
[1749238362372,1.0961662,2489.0,2488.9,0.80297]
[1749238363370,1.8990962,2489.0,2488.9,0.80297]
[1749238363568,1.0961662,2489.0,2488.7,1.35932228]
[1749238363769,0.80294,2489.0,2488.9,0.80297]
[1749238363966,1.90428427,2489.2,2489.0,0.80292]
[1749238364162,1.90428427,2489.2,2488.7,3.36688228]
[1749238364163,0.80892228,2489.2,2489.1,0.07133351]
[1749238364369,1.90440329,2489.2,2489.1,0.07133351]
[1749238364759,1.10150329,2489.2,2489.1,0.87423351]
[1749238365062,3.2078,2489.7,2489.6,0.80274]
[1749238365270,3.2078,2490.3,2489.8,0.80266]
[1749238365465,4.49059404,2490.2,2489.7,0.6764]
[1749238365663,0.80268,2489.8,2489.7,0.6764]
[1749238366072,2.00662,2489.9,2489.2,2.08104]
[1749238366270,0.80279,2489.5,2489.3,0.6764]
[1749238367179,0.80279,2489.5,2489.3,1.47924]
[1749238367473,0.80279,2489.5,2489.3,0.6764]
[1749238367678,1.3886,2489.7,2489.3,0.6764]
[1749238367878,0.80276,2489.6,2489.3,0.6764]
[1749238368085,0.80276,2489.6,2489.4,0.8028]
[1749238368274,0.80276,2489.6,2489.3,1.47922]
[1749238368476,0.80278,2489.5,2489.3,1.47922]
[1749238368671,0.80275,2489.6,2489.3,0.6764]
[1749238368871,0.80275,2489.6,2489.4,0.8028]
[1749238369379,4.5964,2489.7,2489.1,0.07133351]
[1749238369583,0.80284,2489.3,2489.1,1.51752351]
[1749238370069,0.80287,2489.2,2489.1,0.6433]
[1749238371973,5.0,2489.2,2488.7,0.00602228]
[1749238372177,0.80299,2488.9,2488.7,0.80904228]
[1749238372373,0.80299,2488.9,2488.7,0.00602228]
[1749238372578,0.80299,2488.9,2488.7,0.80903228]
[1749238372778,0.80299,2488.9,2488.8,0.803]
[1749238372980,0.80299,2488.9,2488.7,0.80903228]
[1749238373376,4.4854,2489.1,2488.7,0.80903228]
[1749238373581,1.09603746,2489.0,2488.7,0.00602228]
[1749238373783,1.2776,2488.9,2488.7,0.00602228]
[1749238374384,0.803,2488.8,2488.7,0.00602228]
[1749238377487,0.803,2488.8,2488.7,0.80905228]
[1749238377988,0.803,2488.8,2488.7,0.00602228]
[1749238380190,3.2078,2489.4,2488.7,5.00602228]
[1749238380393,3.30399,2489.7,2489.1,0.80288]
[1749238380588,0.80287,2489.2,2489.0,2.13542]
[1749238380788,0.80285,2489.3,2489.1,0.8029]
[1749238381088,0.80283,2489.4,2489.2,0.80287]
[1749238381290,5.35807,2489.5,2489.4,0.07133351]
[1749238381589,6.45182749,2489.5,2489.4,0.07133351]
[1749238382491,4.30155749,2489.5,2489.4,0.87414351]
[1749238382693,3.8863,2489.9,2489.8,0.80268]
[1749238382983,4.30149282,2489.9,2489.5,0.6953]
[1749238383192,3.2078,2489.9,2489.5,0.6953]
[1749238383382,0.80864228,2490.0,2489.7,3.2078]
[1749238383587,0.80864228,2490.0,2489.8,0.80265]
[1749238383788,0.00602228,2490.0,2489.7,3.2078]
[1749238383991,0.00602228,2490.0,2489.9,0.80264]
[1749238384195,0.80864228,2490.0,2489.8,2.80855]
[1749238384991,0.00602228,2490.0,2489.9,0.80264]
[1749238385192,0.80863228,2490.0,2489.8,2.80855]
[1749238385384,0.80863228,2490.0,2489.8,2.0059]
[1749238385584,0.80865228,2490.0,2489.8,1.46686]
[1749238386591,0.80865228,2490.0,2489.9,0.80264]
[1749238386889,0.80865228,2490.0,2489.8,1.46685]
[1749238387090,3.21382228,2490.0,2489.5,0.76663351]
[1749238387290,10.26738228,2490.0,2489.5,0.76663351]
[1749238387587,0.80274,2489.6,2489.5,0.76663351]
[1749238387784,0.80274,2489.6,2489.5,0.07133351]
[1749238387983,5.80274,2489.6,2489.5,0.07133351]
[1749238388187,8.17976537,2489.6,2489.5,0.07133351]
[1749238388389,13.22676537,2489.6,2489.5,0.07133351]
[1749238388593,0.8029,2489.1,2489.0,0.6459]
[1749238388990,3.2078,2489.2,2489.0,0.6459]
[1749238388991,4.01069,2489.2,2489.0,0.6459]
[1749238389191,4.01069,2489.2,2489.1,0.8029]
[1749238389388,0.8029,2489.1,2489.0,1.44881]
[1749238389591,0.8029,2489.1,2489.0,0.6459]
[1749238389894,2.1648,2489.1,2489.0,1.44883]
[1749238391305,2.1648,2489.1,2489.0,0.6459]
[1749238392499,0.803,2488.8,2488.7,0.00602228]
[1749238392692,10.1520302,2488.8,2488.7,0.00602228]
[1749238393091,15.1520302,2488.8,2488.7,0.00602228]
[1749238393304,15.1520302,2488.8,2488.1,0.6661]
[1749238393305,0.80319,2488.2,2488.1,0.6661]
[1749238393496,3.2078,2488.4,2488.1,1.46929]
[1749238393696,0.80319,2488.3,2488.1,1.46929]
[1749238393996,0.80319,2488.2,2488.1,1.46929]
[1749238394195,3.21382228,2488.4,2488.3,0.80316]
[1749238394397,0.00602228,2488.4,2488.3,4.01096]
[1749238395303,0.00602228,2488.4,2488.3,9.01096]
[1749238396702,0.80297,2489.0,2488.8,0.80299]
[1749238396896,0.80297,2489.0,2488.6,2.00766]
[1749238396897,0.80297,2488.9,2488.7,4.70881]
[1749238397103,0.80297,2488.9,2488.8,0.803]
[1749238397403,0.80293,2489.1,2488.9,0.80297]
[1749238397602,1.39652228,2489.2,2488.7,3.9058]
[1749238397802,1.09276415,2489.1,2488.7,3.9058]
[1749238398005,0.80296,2489.0,2488.8,0.803]
[1749238398602,0.803,2488.8,2488.7,3.9058]
[1749238398803,0.80304,2488.7,2488.4,5.114]
[1749238399111,1.3216,2488.9,2488.3,3.2078]
[1749238399302,2.12457,2488.9,2488.7,0.80301]
[1749238399607,2.12457,2488.9,2488.8,0.07133351]
[1749238399802,2.12457,2488.9,2488.8,0.87433351]
[1749238400009,1.3216,2488.9,2488.8,0.87433351]
[1749238400206,2.12457,2488.9,2488.8,0.07133351]
[1749238400999,8.3218,2489.0,2488.8,0.07133351]
[1749238401206,5.91696,2489.0,2488.9,0.80297]
[1749238401706,0.00602228,2489.2,2488.8,0.07133351]
[1749238401707,5.12002228,2489.2,2488.8,0.07133351]
[1749238401899,0.80294,2489.0,2488.9,0.80294]
[1749238402510,0.80297,2488.9,2488.8,0.87430351]
[1749238402808,0.80296,2489.0,2488.9,0.80295]
[1749238403809,0.80293,2489.1,2489.0,0.8029]
[1749238404109,1.89528764,2489.1,2489.0,0.8029]
[1749238404307,3.25148764,2489.1,2489.0,0.8029]
[1749238404503,2.44855764,2489.1,2489.0,0.8029]
[1749238404708,1.3562,2489.1,2489.0,0.8029]
[1749238404909,5.92291228,2489.2,2488.8,2.71332351]
[1749238404910,5.12002228,2489.2,2488.8,2.71332351]
[1749238405109,5.92289228,2489.2,2489.1,0.8029]
[1749238406614,7.01533825,2489.2,2489.1,0.8029]
[1749238407311,6.21246825,2489.2,2489.1,0.8029]
[1749238407514,7.01533825,2489.2,2489.1,0.8029]
[1749238407906,0.8029,2489.1,2489.0,1.45371]
[1749238408315,5.92291228,2489.2,2489.1,0.8029]
[1749238408516,0.8029,2489.1,2489.0,1.45371]
[1749238410316,0.8029,2489.1,2489.0,0.6508]
[1749238410505,0.80297,2488.9,2488.8,0.70583351]
[1749238410706,1.39,2489.0,2488.8,0.70583351]
[1749238410912,0.80297,2488.9,2488.8,0.70583351]
[1749238411720,0.80297,2488.9,2488.8,0.07133351]
[1749238412122,5.76662416,2488.9,2488.8,0.07133351]
[1749238412516,9.96365416,2488.9,2488.1,0.8032]
[1749238412822,0.80322,2488.1,2488.0,1.43446]
[1749238413118,0.80322,2488.1,2488.0,1.43444]
[1749238413517,5.114,2488.6,2488.3,0.80316]
[1749238413722,0.80319,2488.3,2488.0,0.6312]
[1749238413911,1.1228003,2488.5,2488.1,0.8032]
[1749238413912,0.80319,2488.2,2488.1,0.8032]
[1749238414114,0.80319,2488.3,2488.2,0.80319]
[1749238414825,0.80321,2488.2,2488.1,0.80321]
[1749238415017,3.2078,2488.4,2488.1,0.80321]
[1749238415319,4.5466,2488.4,2488.1,0.80321]
[1749238415517,4.5466,2488.4,2488.0,0.70253351]
[1749238415718,0.80322,2488.2,2488.0,0.70253351]
[1749238415919,0.80322,2488.2,2488.1,0.80322]
[1749238416437,4.5466,2488.4,2488.0,0.70253351]
[1749238416620,4.5466,2488.4,2488.3,0.80316]
[1749238416925,0.80317,2488.3,2488.2,0.80317]
[1749238417326,1.1237945,2488.3,2488.2,0.80317]
[1749238418025,1.9269545,2488.3,2488.2,0.80317]
[1749238418224,0.8032,2488.2,2488.1,0.80321]
[1749238418424,3.2078,2488.4,2488.0,0.70253351]
[1749238418626,0.80321,2488.2,2488.1,0.80322]
[1749238419123,0.80322,2488.1,2488.0,1.50577351]
[1749238419321,0.80322,2488.1,2488.0,0.70253351]
[1749238419520,0.80322,2488.2,2488.1,0.80322]
[1749238419922,0.80323,2488.1,2488.0,0.70253351]
[1749238420220,0.80322,2488.2,2488.1,0.80323]
[1749238421230,1.3082,2488.2,2488.1,0.80323]
[1749238421631,3.8695,2488.4,2488.3,0.80316]
[1749238421930,3.2078,2488.4,2488.3,0.80316]
[1749238422124,7.22625,2488.7,2488.5,0.80307]
[1749238422323,1.12366644,2488.6,2488.5,0.80307]
[1749238423829,0.80303,2488.7,2488.6,0.80303]
[1749238424028,1.92682811,2488.7,2488.6,0.80303]
[1749238424430,1.12379811,2488.7,2488.6,0.80303]
[1749238425833,3.2078,2489.0,2488.9,0.80297]
[1749238426131,4.33183889,2489.0,2488.9,0.80297]
[1749238426331,1.12403889,2489.0,2488.9,0.80297]
[1749238427130,5.05302228,2489.2,2489.1,0.8029]
[1749238427430,6.18595679,2489.2,2489.1,0.8029]
[1749238427636,0.80291,2489.1,2489.0,0.80292]
[1749238427833,1.13293451,2489.1,2488.9,0.80295]
[1749238428034,1.93586451,2489.1,2488.9,0.80295]
[1749238428335,1.13293451,2489.0,2488.6,2.00767]
[1749238428537,1.13293451,2489.0,2488.9,0.80297]
[1749238431031,1.13293451,2489.0,2488.9,0.87430351]
[1749238431434,1.93586451,2489.0,2488.9,0.87430351]
[1749238431633,1.13293451,2489.0,2488.9,0.87430351]
[1749238432439,1.93586451,2489.0,2488.9,0.87430351]
[1749238432637,1.13293451,2489.0,2488.9,0.87430351]
[1749238434036,1.93586451,2489.0,2488.9,0.87430351]
[1749238434236,2.44793451,2489.0,2488.9,0.87430351]
[1749238434741,3.25086451,2489.0,2488.9,0.87430351]
[1749238434935,2.44793451,2489.0,2488.9,0.87430351]
[1749238435241,6.45866451,2489.0,2488.9,0.07133351]
[1749238436046,7.49393451,2489.0,2488.9,0.87430351]
[1749238436337,1.13293451,2489.0,2488.9,0.87430351]
[1749238436536,1.133824,2489.1,2488.9,0.07133351]
[1749238436736,0.00602228,2489.2,2489.1,0.8029]
[1749238436937,1.13993068,2489.2,2489.1,0.8029]
[1749238437442,1.94280068,2489.2,2489.1,0.8029]
[1749238438642,0.8029,2489.1,2489.0,1.47421]
[1749238438844,3.2195084,2489.1,2489.0,1.47421]
[1749238440245,3.2195084,2489.1,2489.0,0.6713]
[1749238442246,0.80293,2489.0,2488.9,0.07133351]
[1749238442445,3.2250384,2489.0,2488.9,0.07133351]
[1749238442836,0.8032,2488.3,2488.0,3.2078]
[1749238443037,2.00742,2488.9,2488.3,0.80316]
[1749238443038,3.2078,2488.4,2488.3,0.80316]
[1749238443243,4.35305896,2488.4,2488.2,0.80317]
[1749238443448,0.80319,2488.2,2488.1,1.47019]
[1749238443942,3.2078,2488.4,2488.1,0.667]
[1749238444143,0.80319,2488.2,2488.1,0.667]
[1749238444644,3.2078,2488.4,2488.3,0.80316]
[1749238444946,4.35305428,2488.4,2488.3,0.80316]
[1749238445339,4.35305428,2488.4,2488.3,0.87449351]
[1749238445541,5.15618428,2488.4,2488.3,0.87449351]
[1749238445845,5.15618428,2488.4,2488.3,0.07133351]
[1749238446639,5.15618428,2488.4,2488.3,0.87449351]
[1749238446850,5.15618428,2488.4,2488.3,0.07133351]
[1749238447948,5.15618428,2488.4,2488.3,0.87449351]
[1749238448247,5.15618428,2488.4,2488.3,0.07133351]
[1749238448443,4.35305428,2488.4,2488.3,0.87449351]
[1749238448636,3.2078,2488.4,2488.3,0.87449351]
[1749238449037,2.00733,2489.1,2488.3,0.87449351]
[1749238449038,5.047,2489.3,2488.3,12.29492351]
[1749238449339,0.80293,2489.0,2488.9,3.2078]
[1749238449536,1.94898076,2489.0,2488.9,3.8715]
[1749238449737,1.94898076,2489.0,2488.9,4.67447]
[1749238449952,1.14605076,2489.0,2488.9,4.67447]
[1749238450143,1.14643067,2489.1,2488.9,3.8715]
[1749238450345,1.14643067,2489.0,2488.9,4.67447]
[1749238450644,0.00602228,2489.2,2489.1,0.8029]
[1749238451341,1.15250238,2489.2,2489.1,0.8029]
[1749238451541,1.95537238,2489.2,2489.1,0.8029]
[1749238451737,1.15250238,2489.2,2489.1,0.8029]
[1749238452240,1.95537238,2489.2,2489.1,0.8029]
[1749238452448,1.15250238,2489.2,2489.1,0.8029]
[1749238452850,1.95464241,2489.2,2489.1,0.8029]
[1749238453047,1.15177241,2489.2,2489.1,0.8029]
[1749238455655,0.00602228,2489.2,2489.1,2.0643]
[1749238456355,0.00602228,2489.2,2489.1,7.0643]
[1749238457556,0.00602228,2489.2,2489.1,2.0643]
[1749238458056,0.00602228,2489.2,2489.1,0.8029]
[1749238458351,1.15268371,2489.2,2489.0,0.80291]
[1749238458556,0.80293,2489.0,2488.9,4.67445]
[1749238458853,1.94959143,2489.0,2488.9,4.67445]
[1749238459354,2.50696143,2489.0,2488.9,4.67445]
[1749238459548,2.50696143,2489.0,2488.9,1.46665]
[1749238461947,1.14666143,2489.0,2488.9,1.46665]
[1749238462457,1.14666143,2489.0,2488.9,4.67445]
[1749238465552,0.00602228,2489.2,2489.1,0.8029]
[1749238465757,0.00602228,2489.2,2489.1,0.87423351]
[1749238465954,2.28e-06,2489.2,2489.1,5.87423351]
[1749238466253,5.21418,2490.2,2489.1,5.87423351]
[1749238466254,0.6928,2490.3,2490.2,0.80255]
[1749238467754,1.31572228,2490.5,2490.4,0.80248]
[1749238467955,2.11817228,2490.5,2490.4,0.80248]
[1749238468150,1.31572228,2490.5,2490.4,0.80248]
[1749238468757,2.11817228,2490.5,2490.4,0.80248]
[1749238468957,1.31572228,2490.5,2490.4,0.80248]
[1749238469949,2.11817228,2490.5,2490.4,0.80248]
[1749238471655,0.80253,2490.4,2490.3,0.80249]
[1749238471859,0.80258,2490.2,2490.1,0.80255]
[1749238472356,0.80254,2490.3,2490.2,0.80252]
[1749238475854,0.80254,2490.3,2490.2,0.87385351]
[1749238476758,2.07591,2490.4,2490.3,0.80252]
[1749238477656,3.24199699,2490.4,2490.3,0.80252]
[1749238478058,2.43948699,2490.4,2490.3,0.80252]
[1749238478255,3.24196699,2490.4,2490.3,0.80252]
[1749238479056,3.24196699,2490.4,2490.3,4.01032]
[1749238479057,1.16608699,2490.4,2490.3,4.01032]
[1749238479359,0.00602228,2490.5,2490.4,0.80248]
[1749238479560,0.00602228,2490.5,2490.4,1.45898]
[1749238482956,0.00602228,2490.5,2490.3,3.2078]
[1749238482957,0.00602228,2490.5,2490.3,4.0103]
[1749238483153,0.80252,2490.4,2490.3,0.8025]
[1749238483361,0.80252,2490.3,2490.2,0.87386351]
[1749238485263,2.79651,2490.4,2490.3,0.80252]
[1749238487761,0.00602228,2490.5,2490.4,0.80248]
[1749238491062,0.00602228,2490.5,2490.4,0.87381351]
[1749238493658,1.17539959,2490.5,2490.4,0.87381351]
[1749238497270,1.97784959,2490.5,2490.4,0.87381351]
[1749238497870,1.97784959,2490.5,2490.4,0.07133351]
[1749238498266,1.97784959,2490.5,2490.4,0.87381351]
[1749238498566,3.23874959,2490.5,2490.4,0.87381351]
[1749238499466,2.43629959,2490.5,2490.4,0.87381351]
[1749238499871,3.23874959,2490.5,2490.4,0.87381351]
[1749238500168,3.23874959,2490.5,2490.4,0.07133351]
[1749238500770,3.23874959,2490.5,2490.4,0.87381351]
[1749238501168,3.23874959,2490.5,2490.4,0.07133351]
[1749238501570,3.23874959,2490.5,2490.4,0.87381351]
[1749238501972,3.2410844,2490.5,2490.4,0.07133351]
[1749238502968,3.2410844,2490.5,2490.4,0.87381351]
[1749238503370,3.2410844,2490.5,2490.4,0.07133351]
[1749238503673,3.2410844,2490.5,2490.4,0.87381351]
[1749238503869,1.1777344,2490.5,2490.4,0.87381351]
[1749238505275,1.9801844,2490.5,2490.4,0.87381351]
[1749238506879,1.1777344,2490.5,2490.4,0.87381351]
[1749238507673,1.1777344,2490.5,2490.4,1.54181351]
[1749238507874,1.1777344,2490.5,2490.4,2.85961351]
[1749238509283,1.9801844,2490.5,2490.4,1.54181351]
[1749238509679,1.1777344,2490.5,2490.4,1.54181351]
[1749238510784,1.17890845,2490.5,2490.4,1.54181351]
[1749238511087,1.17889302,2490.5,2490.4,1.54181351]
[1749238514984,1.98134302,2490.5,2490.4,1.54181351]
[1749238515284,1.17889302,2490.5,2490.4,1.54181351]
[1749238520493,1.98134302,2490.5,2490.4,1.54181351]
[1749238520689,1.98134302,2490.5,2490.4,0.07133351]
[1749238521089,1.98134302,2490.5,2490.4,0.87381351]
[1749238521497,3.30144302,2490.5,2490.4,0.87381351]
[1749238522193,3.30144302,2490.5,2490.0,3.85482228]
[1749238522194,0.80258,2490.1,2490.0,0.00602228]
[1749238522391,0.80257,2490.2,2490.1,0.80258]
[1749238522696,0.6717,2490.4,2490.0,0.00602228]
[1749238522697,3.29534271,2490.3,2490.2,0.80255]
[1749238522992,1.17274034,2490.3,2490.2,0.80255]
[1749238524199,1.17274034,2490.3,2490.2,1.43355]
[1749238527910,0.00602228,2490.5,2490.4,0.80248]
[1749238528195,0.00602228,2490.5,2490.4,4.01028]
[1749238528400,1.9438,2491.1,2491.0,0.80229]
[1749238528601,1.3098,2491.1,2491.0,0.80229]
[1749238528799,0.6695,2491.4,2490.9,0.6449]
[1749238528995,3.2078,2491.5,2491.4,0.80216]
[1749238529198,3.2078,2491.5,2491.3,0.80217]
[1749238529199,0.80217,2491.4,2491.3,0.80217]
[1749238529798,4.00995,2491.5,2491.4,0.80216]
[1749238530199,3.2078,2491.5,2491.4,0.80216]
[1749238531301,1.31582228,2491.6,2491.5,0.80213]
[1749238531610,2.11792228,2491.6,2491.5,0.80213]
[1749238531999,1.31582228,2491.6,2491.5,0.80213]
[1749238532194,0.00602228,2491.6,2491.5,0.80213]
[1749238535899,0.00602228,2491.6,2491.5,0.87346351]
[1749238539608,0.00602228,2491.6,2491.5,2.18976351]
[1749238540815,0.00602228,2491.6,2491.5,0.87346351]
[1749238547410,0.80812228,2491.6,2491.5,0.87346351]
[1749238547613,0.80812228,2491.6,2491.5,0.07133351]
[1749238547918,8.17555792,2491.6,2490.8,0.80231]
[1749238548215,0.80239,2490.8,2490.7,0.80236]
[1749238548605,1.3414,2490.8,2490.7,0.80236]
[1749238549308,2.14375,2490.8,2490.7,0.80236]
[1749238549714,1.3414,2490.8,2490.7,0.80236]
[1749238550012,1.3414,2490.8,2490.7,0.87369351]
[1749238551916,0.8023,2491.0,2490.9,0.80232]
[1749238552114,2.4390715,2491.0,2490.9,0.80232]
[1749238552413,1.48955,2491.2,2491.1,0.80226]
[1749238552609,3.92807346,2491.2,2491.1,0.80226]
[1749238553413,0.80228,2491.1,2491.0,0.80226]
[1749238553607,1.96630346,2491.1,2491.0,0.80226]
[1749238553915,3.24080346,2491.1,2491.0,0.80226]
[1749238554213,2.43852346,2491.1,2491.0,0.80226]
[1749238556511,1.16402346,2491.1,2491.0,0.80226]
[1749238559015,0.8022,2491.3,2491.2,0.80219]
[1749238559222,1.96975714,2491.3,2491.2,0.80219]
[1749238560622,1.16755714,2491.3,2491.2,0.80219]
[1749238561315,1.96974714,2491.3,2491.2,0.80219]
[1749238561714,1.16755714,2491.3,2491.2,0.80219]
[1749238563616,2.46125714,2491.3,2491.2,0.80219]
[1749238565122,3.26344714,2491.3,2491.2,0.80219]
[1749238565321,3.26344714,2491.3,2491.2,0.87352351]
[1749238566020,2.46125714,2491.3,2491.2,0.87352351]
[1749238566925,3.26344714,2491.3,2491.2,0.87352351]
[1749238571729,3.26344714,2491.3,2491.2,0.07133351]
[1749238571929,8.26344714,2491.3,2491.2,0.07133351]
[1749238572131,2.00568,2491.1,2490.6,0.658]
[1749238572329,0.80242,2490.6,2490.5,0.00602228]
[1749238572516,6.88997714,2490.6,2490.5,0.00602228]
[1749238572722,8.85587714,2490.6,2490.5,0.00602228]
[1749238573836,0.8026,2490.1,2489.8,3.2078]
[1749238574024,1.16787962,2490.0,2489.9,0.80264]
[1749238575621,1.97048962,2490.0,2489.9,0.80264]
[1749238575827,0.80264,2489.9,2489.8,4.01046]
[1749238576030,2.50537962,2489.9,2489.8,4.01046]
[1749238576926,1.16787962,2489.9,2489.8,4.01046]
[1749238577330,1.16787962,2489.9,2489.8,5.39696]
[1749238577733,1.16787962,2489.9,2489.8,4.01046]
[1749238578632,0.80258,2490.1,2490.0,0.80261]
[1749238578930,1.96607793,2490.1,2490.0,0.80261]
[1749238580734,0.80261,2490.0,2489.8,4.08179351]
[1749238581034,1.16349793,2490.1,2489.8,4.08179351]
[1749238581035,1.3468,2490.1,2489.8,4.08179351]
[1749238581236,1.96536157,2490.0,2489.8,4.08178351]
[1749238581435,0.80263,2490.0,2489.8,4.08178351]
[1749238581636,0.80264,2489.9,2489.8,3.27913351]
[1749238582334,0.80264,2489.9,2489.8,4.08181351]
[1749238582538,0.80264,2489.9,2489.8,3.27913351]
[1749238582928,0.80264,2489.9,2489.8,0.07133351]
[1749238583435,0.8028,2489.4,2489.3,4.01062]
[1749238583737,0.8028,2489.4,2489.3,3.2078]
[1749238584434,0.8028,2489.4,2489.3,4.01064]
[1749238588535,0.8028,2489.4,2489.3,3.2078]
[1749238589236,0.8028,2489.4,2489.3,4.01064]
[1749238589444,0.8028,2489.4,2489.3,3.2078]
[1749238589643,0.80284,2489.3,2489.2,0.6349]
[1749238590038,0.80284,2489.3,2489.2,1.43776]
[1749238592443,0.80284,2489.3,2489.2,0.6349]
[1749238594046,0.80284,2489.3,2489.2,1.43777]
[1749238594743,0.80284,2489.3,2489.2,1.50910351]
[1749238595845,0.80284,2489.3,2489.2,0.70623351]
[1749238596542,0.80284,2489.3,2489.2,1.50910351]
[1749238597541,1.96160898,2489.3,2489.2,1.50910351]
[1749238600242,1.96160898,2489.3,2489.2,0.70623351]
[1749238600547,1.96160898,2489.3,2489.2,1.50910351]
[1749238600749,1.96160898,2489.3,2489.2,0.70623351]
[1749238601552,1.96160898,2489.3,2488.8,3.37696]
[1749238601553,2.00733,2489.1,2488.7,3.2078]
[1749238601747,0.803,2488.8,2488.7,3.2078]
[1749238601945,1.96176898,2488.8,2488.7,4.01083]
[1749238602844,1.96176898,2488.8,2488.7,0.80303]
[1749238603353,0.80303,2488.7,2488.6,1.44795]
[1749238603548,0.80303,2488.7,2488.6,0.6449]
[1749238603549,1.96179898,2488.7,2488.6,0.6449]
[1749238603851,1.96179898,2488.7,2488.6,1.44796]
[1749238604441,0.80303,2488.7,2488.6,1.44796]
[1749238605048,1.96538183,2488.7,2488.6,1.44796]
[1749238605751,0.80303,2488.7,2488.6,1.44796]
[1749238606147,1.96538183,2488.7,2488.6,1.44796]
[1749238607054,1.16235183,2488.7,2488.6,4.65576]
[1749238608252,0.80303,2488.7,2488.6,4.65576]
[1749238608446,1.16235183,2488.7,2488.6,4.65576]
[1749238608647,0.00602228,2488.9,2488.8,0.803]
[1749238609152,4.92,2489.4,2489.3,0.80284]
[1749238609458,0.6709,2489.8,2489.4,0.80278]
[1749238609459,4.915,2489.7,2489.4,0.80278]
[1749238609657,1.96497843,2489.6,2489.4,1.47178]
[1749238609859,1.96497843,2489.5,2489.4,1.47178]
[1749238610258,1.96497843,2489.5,2489.4,0.669]
[1749238610558,1.96497843,2489.5,2489.4,1.4718]
[1749238614162,1.16220843,2489.5,2489.4,1.4718]
[1749238614359,1.16481311,2489.6,2489.4,0.669]
[1749238614662,0.00602228,2489.7,2489.6,0.80274]
[1749238614861,1.17070347,2489.7,2489.6,0.80274]
[1749238616061,1.97341347,2489.7,2489.6,0.80274]
[1749238617258,1.17070347,2489.7,2489.6,0.80274]
[1749238617672,1.97341347,2489.7,2489.6,0.80274]
[1749238619362,1.17070347,2489.7,2489.6,0.80274]
[1749238619564,1.97341347,2489.7,2489.6,0.80274]
[1749238620571,0.80274,2489.6,2489.5,1.46594]
[1749238620768,1.96742119,2489.6,2489.5,1.46594]